[Event "Titled Tuesday Blitz August 23 Early 2022"]
[White "Alekseenko, Kirill"]
[Black "Yedidia, Daniel"]
[WhiteFideId "4135539"]
[BlackFideId "30905907"]
[WhiteElo "2682"]
[BlackElo "2526"]
[Result "1-0"]
[Round "01"]
[TimeControl "180+1"]
[Date "2022.08.23"]
[WhiteClock "0:00:10"]
[BlackClock "0:00:05"]

1. f4 {[%clk 0:02:55]}  Nf6 {[%clk 0:02:57]} 2. Nf3 {[%clk 0:02:55]}  g6 {[%clk 0:02:57]} 3. b3 {[%clk 0:02:52]}  Bg7 {[%clk 0:02:57]} 4. Bb2 {[%clk 0:02:52]}  O-O {[%clk 0:02:56]} 5. e3 {[%clk 0:02:53]}  c5 {[%clk 0:02:56]} 6. Be2 {[%clk 0:02:52]}  Nc6 {[%clk 0:02:56]} 7. O-O {[%clk 0:02:53]}  b6 {[%clk 0:02:53]} 8. Qc1 {[%clk 0:02:16]}  Bb7 {[%clk 0:02:45]} 9. d3 {[%clk 0:02:16]}  d5 {[%clk 0:02:29]} 10. Ne5 {[%clk 0:02:09]}  d4 {[%clk 0:02:26]} 11. Nxc6 {[%clk 0:02:06]}  Bxc6 {[%clk 0:02:26]} 12. e4 {[%clk 0:02:07]}  Nd7 {[%clk 0:02:13]} 13. f5 {[%clk 0:02:01]}  Ne5 {[%clk 0:02:00]} 14. Qf4 {[%clk 0:01:51]}  Rc8 {[%clk 0:01:46]} 15. Nd2 {[%clk 0:01:51]}  Qc7 {[%clk 0:01:46]} 16. Nf3 {[%clk 0:01:39]}  Nxf3+ {[%clk 0:01:41]} 17. Qxf3 {[%clk 0:01:40]}  b5 {[%clk 0:01:34]} 18. Bc1 {[%clk 0:01:38]}  Qb7 {[%clk 0:01:26]} 19. Qh3 {[%clk 0:01:29]}  c4 {[%clk 0:01:13]} 20. Bh6 {[%clk 0:01:28]}  cxd3 {[%clk 0:01:10]} 21. cxd3 {[%clk 0:01:27]}  Bd7 {[%clk 0:01:03]} 22. Bg4 {[%clk 0:01:20]}  Bxh6 {[%clk 0:00:34]} 23. Qxh6 {[%clk 0:01:21]}  Rc6 {[%clk 0:00:21]} 24. Qh4 {[%clk 0:01:03]}  Qc7 {[%clk 0:00:18]} 25. Rae1 {[%clk 0:01:01]}  e5 {[%clk 0:00:17]} 26. f6 {[%clk 0:00:53]}  Bxg4 {[%clk 0:00:16]} 27. Qxg4 {[%clk 0:00:50]}  Rd8 {[%clk 0:00:11]} 28. Qg5 {[%clk 0:00:47]}  Rdd6 {[%clk 0:00:07]} 29. h3 {[%clk 0:00:44]}  Qd8 {[%clk 0:00:05]} 30. Qxe5 {[%clk 0:00:43]}  Rxf6 {[%clk 0:00:05]} 31. Qxb5 {[%clk 0:00:43]}  Rxf1+ {[%clk 0:00:03]} 32. Rxf1 {[%clk 0:00:43]}  Rc3 {[%clk 0:00:03]} 33. Qb7 {[%clk 0:00:40]}  Rc7 {[%clk 0:00:01]} 34. Qb5 {[%clk 0:00:33]}  Qe7 {[%clk 0:00:02]} 35. a4 {[%clk 0:00:30]}  Rc2 {[%clk 0:00:02]} 36. Qd5 {[%clk 0:00:28]}  Kg7 {[%clk 0:00:02]} 37. Qxd4+ {[%clk 0:00:28]}  Kg8 {[%clk 0:00:02]} 38. Rf2 {[%clk 0:00:22]}  Rc1+ {[%clk 0:00:02]} 39. Kh2 {[%clk 0:00:23]}  Qc7+ {[%clk 0:00:03]} 40. e5 {[%clk 0:00:23]}  Re1 {[%clk 0:00:03]} 41. Qd6 {[%clk 0:00:20]}  Qc1 {[%clk 0:00:02]} 42. Qd8+ {[%clk 0:00:18]}  Kg7 {[%clk 0:00:03]} 43. Qf6+ {[%clk 0:00:18]}  Kh6 {[%clk 0:00:03]} 44. Qf4+ {[%clk 0:00:08]}  Qxf4+ {[%clk 0:00:03]} 45. Rxf4 {[%clk 0:00:09]}  Rxe5 {[%clk 0:00:04]} 46. Rxf7 {[%clk 0:00:09]}  Rd5 {[%clk 0:00:04]} 47. Rxa7 {[%clk 0:00:09]}  Rxd3 {[%clk 0:00:05]} 48. Rb7 {[%clk 0:00:10]} 1-0


[Site "https://www.chess.com"]

[Event "Titled Tuesday Blitz August 23 Early 2022"]
[White "Andreikin, Dmitry"]
[Black "Baches Garcia, Guillermo"]
[WhiteFideId "4158814"]
[BlackFideId "2209764"]
[WhiteElo "2736"]
[BlackElo "2550"]
[Result "1-0"]
[Round "01"]
[TimeControl "180+1"]
[Date "2022.08.23"]
[WhiteClock "0:01:05"]
[BlackClock "0:00:03"]

1. Nf3 {[%clk 0:03:00]}  Nf6 {[%clk 0:02:59]} 2. c4 {[%clk 0:02:57]}  e6 {[%clk 0:02:58]} 3. d4 {[%clk 0:02:56]}  d5 {[%clk 0:02:59]} 4. e3 {[%clk 0:02:56]}  c5 {[%clk 0:02:58]} 5. cxd5 {[%clk 0:02:56]}  exd5 {[%clk 0:02:56]} 6. Bb5+ {[%clk 0:02:55]}  Bd7 {[%clk 0:02:54]} 7. Bxd7+ {[%clk 0:02:55]}  Nbxd7 {[%clk 0:02:50]} 8. dxc5 {[%clk 0:02:52]}  Bxc5 {[%clk 0:02:42]} 9. O-O {[%clk 0:02:52]}  O-O {[%clk 0:02:40]} 10. b3 {[%clk 0:02:52]}  Re8 {[%clk 0:02:19]} 11. Bb2 {[%clk 0:02:52]}  Rc8 {[%clk 0:02:19]} 12. Nc3 {[%clk 0:02:51]}  Nb6 {[%clk 0:02:15]} 13. Rc1 {[%clk 0:02:47]}  Qe7 {[%clk 0:02:10]} 14. Ne2 {[%clk 0:02:40]}  Ne4 {[%clk 0:02:05]} 15. Nfd4 {[%clk 0:02:36]}  Qg5 {[%clk 0:01:52]} 16. Ng3 {[%clk 0:02:34]}  Bd6 {[%clk 0:01:41]} 17. Rxc8 {[%clk 0:02:31]}  Rxc8 {[%clk 0:01:38]} 18. Ndf5 {[%clk 0:02:12]}  Bf8 {[%clk 0:01:22]} 19. Qd4 {[%clk 0:02:04]}  Rc2 {[%clk 0:01:13]} 20. h4 {[%clk 0:01:51]}  Nxg3 {[%clk 0:01:02]} 21. hxg5 {[%clk 0:01:40]}  Ne2+ {[%clk 0:01:01]} 22. Kh2 {[%clk 0:01:41]}  Nxd4 {[%clk 0:01:01]} 23. Bxd4 {[%clk 0:01:42]}  Rxa2 {[%clk 0:00:45]} 24. f4 {[%clk 0:01:42]}  Rc2 {[%clk 0:00:27]} 25. Ra1 {[%clk 0:01:41]}  Nc8 {[%clk 0:00:23]} 26. Ra5 {[%clk 0:01:34]}  g6 {[%clk 0:00:11]} 27. Nh6+ {[%clk 0:01:32]}  Bxh6 {[%clk 0:00:11]} 28. gxh6 {[%clk 0:01:33]}  Kf8 {[%clk 0:00:09]} 29. Rxd5 {[%clk 0:01:28]}  Ke7 {[%clk 0:00:09]} 30. Re5+ {[%clk 0:01:27]}  Kd7 {[%clk 0:00:09]} 31. Rd5+ {[%clk 0:01:27]}  Ke7 {[%clk 0:00:08]} 32. Bc5+ {[%clk 0:01:24]}  Ke8 {[%clk 0:00:06]} 33. e4 {[%clk 0:01:23]}  f6 {[%clk 0:00:05]} 34. Bd4 {[%clk 0:01:13]}  Ke7 {[%clk 0:00:03]} 35. f5 {[%clk 0:01:11]}  g5 {[%clk 0:00:02]} 36. Bc5+ {[%clk 0:01:09]}  Ke8 {[%clk 0:00:01]} 37. e5 {[%clk 0:01:07]}  fxe5 {[%clk 0:00:01]} 38. Rxe5+ {[%clk 0:01:07]}  Kf7 {[%clk 0:00:01]} 39. Rd5 {[%clk 0:01:07]}  Nb6 {[%clk 0:00:02]} 40. Bxb6 {[%clk 0:01:05]}  axb6 {[%clk 0:00:03]} 41. Rd7+ {[%clk 0:01:05]}  Kf6 {[%clk 0:00:03]} 42. Rxh7 {[%clk 0:01:05]}  Kxf5 {[%clk 0:00:04]} 43. Rxb7 {[%clk 0:01:05]}  Rc8 {[%clk 0:00:03]} 44. Rxb6 {[%clk 0:01:05]}  Rh8 {[%clk 0:00:03]} 45. Kg3 {[%clk 0:01:05]} 1-0


[Site "https://www.chess.com"]

[Event "Titled Tuesday Blitz August 23 Early 2022"]
[White "Avramidou, Anastasia"]
[Black "Grandelius, Nils"]
[WhiteFideId "4239873"]
[BlackFideId "1710400"]
[WhiteElo "2183"]
[BlackElo "2617"]
[Result "0-1"]
[Round "01"]
[TimeControl "180+1"]
[Date "2022.08.23"]
[WhiteClock "0:00:20"]
[BlackClock "0:00:34"]

1. d4 {[%clk 0:02:58]}  Nf6 {[%clk 0:02:58]} 2. c4 {[%clk 0:02:56]}  e6 {[%clk 0:02:58]} 3. Nc3 {[%clk 0:02:56]}  Bb4 {[%clk 0:02:57]} 4. e3 {[%clk 0:02:56]}  c5 {[%clk 0:02:54]} 5. Bd3 {[%clk 0:02:55]}  d5 {[%clk 0:02:46]} 6. cxd5 {[%clk 0:02:54]}  cxd4 {[%clk 0:02:45]} 7. exd4 {[%clk 0:02:53]}  Nxd5 {[%clk 0:02:40]} 8. Ne2 {[%clk 0:02:53]}  O-O {[%clk 0:02:37]} 9. O-O {[%clk 0:02:52]}  Nc6 {[%clk 0:02:38]} 10. a3 {[%clk 0:02:49]}  Be7 {[%clk 0:02:34]} 11. Nxd5 {[%clk 0:02:44]}  Qxd5 {[%clk 0:02:32]} 12. Be3 {[%clk 0:02:44]}  Bf6 {[%clk 0:02:31]} 13. Nc3 {[%clk 0:02:42]}  Qd8 {[%clk 0:02:30]} 14. d5 {[%clk 0:01:58]}  exd5 {[%clk 0:02:30]} 15. Nxd5 {[%clk 0:01:59]}  Bxb2 {[%clk 0:02:30]} 16. Rb1 {[%clk 0:01:59]}  Be5 {[%clk 0:02:22]} 17. f4 {[%clk 0:01:50]}  Be6 {[%clk 0:02:21]} 18. Be4 {[%clk 0:01:39]}  Bxd5 {[%clk 0:02:17]} 19. Qxd5 {[%clk 0:01:31]}  Bd4 {[%clk 0:02:10]} 20. Bxd4 {[%clk 0:01:26]}  Nxd4 {[%clk 0:02:11]} 21. Qxd8 {[%clk 0:01:21]}  Raxd8 {[%clk 0:02:04]} 22. Rxb7 {[%clk 0:01:21]}  Rfe8 {[%clk 0:01:46]} 23. Bf3 {[%clk 0:00:52]}  a5 {[%clk 0:01:28]} 24. h3 {[%clk 0:00:52]}  Re3 {[%clk 0:01:21]} 25. a4 {[%clk 0:00:39]}  g6 {[%clk 0:00:48]} 26. Bg4 {[%clk 0:00:34]}  h5 {[%clk 0:00:45]} 27. Bd1 {[%clk 0:00:33]}  Nf5 {[%clk 0:00:37]} 28. Bf3 {[%clk 0:00:32]}  Rd4 {[%clk 0:00:36]} 29. Ra7 {[%clk 0:00:29]}  Rxa4 {[%clk 0:00:35]} 30. Bd5 {[%clk 0:00:29]}  Nh6 {[%clk 0:00:35]} 31. f5 {[%clk 0:00:27]}  gxf5 {[%clk 0:00:35]} 32. Rc1 {[%clk 0:00:25]}  Rd4 {[%clk 0:00:34]} 33. Rxa5 {[%clk 0:00:21]}  Re5 {[%clk 0:00:33]} 34. Bxf7+ {[%clk 0:00:20]}  Nxf7 {[%clk 0:00:34]} 0-1


[Site "https://www.chess.com"]

[Event "Titled Tuesday Blitz August 23 Early 2022"]
[White "Bilan, Danila"]
[Black "Sarana, Alexey"]
[WhiteFideId "24161918"]
[BlackFideId "24133795"]
[WhiteElo "2164"]
[BlackElo "2666"]
[Result "0-1"]
[Round "01"]
[TimeControl "180+1"]
[Date "2022.08.23"]
[WhiteClock "0:00:02"]
[BlackClock "0:01:01"]

1. d4 {[%clk 0:02:50]}  Nf6 {[%clk 0:02:58]} 2. Nf3 {[%clk 0:02:39]}  d5 {[%clk 0:02:57]} 3. c4 {[%clk 0:02:39]}  e6 {[%clk 0:02:57]} 4. Nc3 {[%clk 0:02:38]}  Nbd7 {[%clk 0:02:57]} 5. cxd5 {[%clk 0:02:37]}  exd5 {[%clk 0:02:57]} 6. Bg5 {[%clk 0:02:37]}  h6 {[%clk 0:02:53]} 7. Bh4 {[%clk 0:02:37]}  c6 {[%clk 0:02:52]} 8. e3 {[%clk 0:02:37]}  g5 {[%clk 0:02:51]} 9. Bg3 {[%clk 0:02:36]}  Nh5 {[%clk 0:02:52]} 10. Be5 {[%clk 0:02:26]}  Nhf6 {[%clk 0:02:46]} 11. Bd3 {[%clk 0:02:22]}  Nxe5 {[%clk 0:02:37]} 12. Nxe5 {[%clk 0:02:23]}  Be6 {[%clk 0:02:32]} 13. Qc2 {[%clk 0:02:19]}  Nd7 {[%clk 0:02:28]} 14. Nf3 {[%clk 0:01:54]}  Bd6 {[%clk 0:02:18]} 15. O-O-O {[%clk 0:01:50]}  Qb6 {[%clk 0:02:12]} 16. Kb1 {[%clk 0:01:44]}  O-O-O {[%clk 0:02:09]} 17. Bf5 {[%clk 0:01:40]}  Kb8 {[%clk 0:02:04]} 18. Na4 {[%clk 0:01:32]}  Qa5 {[%clk 0:02:02]} 19. Nc3 {[%clk 0:01:17]}  Nf6 {[%clk 0:01:52]} 20. Nd2 {[%clk 0:01:14]}  Qc7 {[%clk 0:01:47]} 21. h3 {[%clk 0:01:11]}  Qd7 {[%clk 0:01:47]} 22. Bd3 {[%clk 0:01:05]}  Nh5 {[%clk 0:01:35]} 23. Nb3 {[%clk 0:01:04]}  f5 {[%clk 0:01:32]} 24. Na4 {[%clk 0:01:03]}  b6 {[%clk 0:01:30]} 25. Rc1 {[%clk 0:01:01]}  Rc8 {[%clk 0:01:31]} 26. Qe2 {[%clk 0:00:38]}  Nf6 {[%clk 0:01:28]} 27. Nc3 {[%clk 0:00:37]}  Ne4 {[%clk 0:01:28]} 28. Rc2 {[%clk 0:00:33]}  Rhe8 {[%clk 0:01:26]} 29. Rhc1 {[%clk 0:00:32]}  Bf7 {[%clk 0:01:25]} 30. Ba6 {[%clk 0:00:32]}  Rc7 {[%clk 0:01:25]} 31. Nxe4 {[%clk 0:00:18]}  fxe4 {[%clk 0:01:23]} 32. a4 {[%clk 0:00:16]}  Rf8 {[%clk 0:01:16]} 33. Qe1 {[%clk 0:00:10]}  Be8 {[%clk 0:01:14]} 34. Be2 {[%clk 0:00:10]}  a5 {[%clk 0:01:09]} 35. Bg4 {[%clk 0:00:08]}  Qe7 {[%clk 0:01:09]} 36. Be2 {[%clk 0:00:06]}  Bb4 {[%clk 0:01:07]} 37. Qg1 {[%clk 0:00:05]}  Qd6 {[%clk 0:01:07]} 38. Bd1 {[%clk 0:00:03]}  h5 {[%clk 0:01:04]} 39. Be2 {[%clk 0:00:02]}  Qe6 {[%clk 0:01:03]} 40. Bf1 {[%clk 0:00:02]}  Rcf7 {[%clk 0:01:01]} 0-1


[Site "https://www.chess.com"]

[Event "Titled Tuesday Blitz August 23 Early 2022"]
[White "Hebden, Mark L"]
[Black "Le, Tuan Minh"]
[WhiteFideId "400084"]
[BlackFideId "12401153"]
[WhiteElo "2457"]
[BlackElo "2530"]
[Result "0-1"]
[Round "01"]
[TimeControl "180+1"]
[Date "2022.08.23"]
[WhiteClock "0:00:03"]
[BlackClock "0:00:14"]

1. d4 {[%clk 0:03:00]}  d5 {[%clk 0:02:59]} 2. Nf3 {[%clk 0:03:00]}  Nf6 {[%clk 0:02:59]} 3. c4 {[%clk 0:03:00]}  c6 {[%clk 0:03:00]} 4. e3 {[%clk 0:02:59]}  Bf5 {[%clk 0:02:59]} 5. cxd5 {[%clk 0:02:58]}  cxd5 {[%clk 0:02:59]} 6. Qb3 {[%clk 0:02:58]}  Qc8 {[%clk 0:02:48]} 7. Bd2 {[%clk 0:02:56]}  e6 {[%clk 0:02:46]} 8. Bb5+ {[%clk 0:02:47]}  Nc6 {[%clk 0:02:46]} 9. O-O {[%clk 0:02:45]}  Bd6 {[%clk 0:02:43]} 10. Bb4 {[%clk 0:02:42]}  Qd7 {[%clk 0:01:43]} 11. Rc1 {[%clk 0:02:29]}  Rc8 {[%clk 0:01:27]} 12. Ne5 {[%clk 0:02:12]}  Bxe5 {[%clk 0:01:27]} 13. dxe5 {[%clk 0:02:11]}  Ng4 {[%clk 0:01:28]} 14. Bd6 {[%clk 0:02:06]}  f6 {[%clk 0:01:25]} 15. Bxc6 {[%clk 0:01:51]}  Rxc6 {[%clk 0:01:23]} 16. Rxc6 {[%clk 0:01:47]}  Qxc6 {[%clk 0:01:24]} 17. Nc3 {[%clk 0:01:37]}  Nxe5 {[%clk 0:01:09]} 18. Bxe5 {[%clk 0:01:34]}  fxe5 {[%clk 0:01:10]} 19. Qa3 {[%clk 0:01:30]}  Kf7 {[%clk 0:01:05]} 20. Qxa7 {[%clk 0:01:28]}  Rd8 {[%clk 0:01:02]} 21. Rd1 {[%clk 0:01:22]}  Kg8 {[%clk 0:01:02]} 22. h3 {[%clk 0:01:18]}  h6 {[%clk 0:01:02]} 23. e4 {[%clk 0:01:11]}  Bg6 {[%clk 0:00:53]} 24. exd5 {[%clk 0:01:08]}  exd5 {[%clk 0:00:54]} 25. Qa5 {[%clk 0:00:57]}  b6 {[%clk 0:00:54]} 26. Qb5 {[%clk 0:00:51]}  Qxb5 {[%clk 0:00:51]} 27. Nxb5 {[%clk 0:00:52]}  d4 {[%clk 0:00:48]} 28. f3 {[%clk 0:00:49]}  Rc8 {[%clk 0:00:31]} 29. Rd2 {[%clk 0:00:43]}  Rc5 {[%clk 0:00:29]} 30. Nd6 {[%clk 0:00:34]}  Kf8 {[%clk 0:00:29]} 31. b3 {[%clk 0:00:30]}  b5 {[%clk 0:00:24]} 32. f4 {[%clk 0:00:24]}  Ke7 {[%clk 0:00:19]} 33. fxe5 {[%clk 0:00:23]}  d3 {[%clk 0:00:19]} 34. Nb7 {[%clk 0:00:13]}  Rc2 {[%clk 0:00:18]} 35. Rd1 {[%clk 0:00:12]}  b4 {[%clk 0:00:15]} 36. Kf1 {[%clk 0:00:11]}  Ke6 {[%clk 0:00:12]} 37. Nd6 {[%clk 0:00:08]}  Kxe5 {[%clk 0:00:12]} 38. Nc4+ {[%clk 0:00:08]}  Kd4 {[%clk 0:00:13]} 39. Nd2 {[%clk 0:00:06]}  Rxa2 {[%clk 0:00:13]} 40. Nf3+ {[%clk 0:00:06]}  Kc3 {[%clk 0:00:13]} 41. Re1 {[%clk 0:00:04]}  d2 {[%clk 0:00:13]} 42. Re3+ {[%clk 0:00:03]}  Bd3+ {[%clk 0:00:14]} 0-1


[Site "https://www.chess.com"]

[Event "Titled Tuesday Blitz August 23 Early 2022"]
[White "Koellner, Ruben Gideon"]
[Black "Lenderman, Aleksandr"]
[WhiteFideId "12993093"]
[BlackFideId "2021285"]
[WhiteElo "2286"]
[BlackElo "2607"]
[Result "0-1"]
[Round "01"]
[TimeControl "180+1"]
[Date "2022.08.23"]
[WhiteClock "0:00:02"]
[BlackClock "0:01:17"]

1. d4 {[%clk 0:02:57]}  e6 {[%clk 0:02:57]} 2. Nf3 {[%clk 0:02:53]}  c5 {[%clk 0:02:52]} 3. e3 {[%clk 0:02:27]}  b6 {[%clk 0:02:48]} 4. Nbd2 {[%clk 0:02:26]}  Bb7 {[%clk 0:02:45]} 5. c3 {[%clk 0:02:26]}  Nf6 {[%clk 0:02:42]} 6. Bd3 {[%clk 0:02:26]}  d5 {[%clk 0:02:33]} 7. Ne5 {[%clk 0:02:25]}  Bd6 {[%clk 0:02:29]} 8. f4 {[%clk 0:02:16]}  O-O {[%clk 0:02:27]} 9. Qf3 {[%clk 0:02:16]}  Ba6 {[%clk 0:02:18]} 10. Bc2 {[%clk 0:02:06]}  b5 {[%clk 0:02:14]} 11. a3 {[%clk 0:01:55]}  b4 {[%clk 0:02:11]} 12. dxc5 {[%clk 0:01:45]}  bxc3 {[%clk 0:02:11]} 13. cxd6 {[%clk 0:01:42]}  cxd2+ {[%clk 0:02:10]} 14. Bxd2 {[%clk 0:01:43]}  Nbd7 {[%clk 0:02:01]} 15. Nc6 {[%clk 0:01:36]}  Qb6 {[%clk 0:01:58]} 16. Rc1 {[%clk 0:01:18]}  Kh8 {[%clk 0:01:52]} 17. Ne5 {[%clk 0:00:59]}  Qxb2 {[%clk 0:01:46]} 18. Nxd7 {[%clk 0:00:43]}  Nxd7 {[%clk 0:01:47]} 19. Qh3 {[%clk 0:00:18]}  f5 {[%clk 0:01:38]} 20. Ba4 {[%clk 0:00:12]}  Rac8 {[%clk 0:01:28]} 21. Rxc8 {[%clk 0:00:08]}  Rxc8 {[%clk 0:01:29]} 22. Bxd7 {[%clk 0:00:06]}  Rc1+ {[%clk 0:01:29]} 23. Kf2 {[%clk 0:00:04]}  Qxd2+ {[%clk 0:01:29]} 24. Kg3 {[%clk 0:00:01]}  Qxe3+ {[%clk 0:01:29]} 25. Kh4 {[%clk 0:00:02]}  Qxf4+ {[%clk 0:01:18]} 26. Kh5 {[%clk 0:00:02]}  Qh6# {[%clk 0:01:17]} 0-1


[Site "https://www.chess.com"]

[Event "Titled Tuesday Blitz August 23 Early 2022"]
[White "Maksimovic, Bojan"]
[Black "Turzo, Attila"]
[WhiteFideId "14408120"]
[BlackFideId "704954"]
[WhiteElo "2447"]
[BlackElo "2508"]
[Result "1-0"]
[Round "01"]
[TimeControl "180+1"]
[Date "2022.08.23"]
[WhiteClock "0:00:17"]
[BlackClock "0:00:01"]

1. e4 {[%clk 0:02:59]}  e5 {[%clk 0:02:56]} 2. Nf3 {[%clk 0:03:00]}  Nc6 {[%clk 0:02:56]} 3. Bb5 {[%clk 0:03:00]}  a6 {[%clk 0:02:56]} 4. Ba4 {[%clk 0:03:01]}  Nf6 {[%clk 0:02:57]} 5. O-O {[%clk 0:03:01]}  Be7 {[%clk 0:02:57]} 6. Re1 {[%clk 0:03:00]}  b5 {[%clk 0:02:56]} 7. Bb3 {[%clk 0:03:00]}  O-O {[%clk 0:02:57]} 8. a4 {[%clk 0:03:01]}  Bb7 {[%clk 0:02:57]} 9. d3 {[%clk 0:03:01]}  d6 {[%clk 0:02:57]} 10. Nbd2 {[%clk 0:03:00]}  Nd7 {[%clk 0:02:56]} 11. axb5 {[%clk 0:02:42]}  axb5 {[%clk 0:02:56]} 12. Rxa8 {[%clk 0:02:42]}  Qxa8 {[%clk 0:02:57]} 13. c3 {[%clk 0:02:42]}  Nc5 {[%clk 0:02:51]} 14. Bc2 {[%clk 0:02:43]}  Bf6 {[%clk 0:02:45]} 15. Nf1 {[%clk 0:02:39]}  Re8 {[%clk 0:02:40]} 16. Ng3 {[%clk 0:02:38]}  g6 {[%clk 0:02:41]} 17. h4 {[%clk 0:02:18]}  b4 {[%clk 0:02:32]} 18. d4 {[%clk 0:01:47]}  exd4 {[%clk 0:02:12]} 19. cxd4 {[%clk 0:01:47]}  Nd7 {[%clk 0:02:12]} 20. h5 {[%clk 0:01:19]}  Bg7 {[%clk 0:01:58]} 21. h6 {[%clk 0:01:18]}  Bh8 {[%clk 0:01:55]} 22. d5 {[%clk 0:01:18]}  Nce5 {[%clk 0:01:53]} 23. Nd4 {[%clk 0:01:19]}  Nc4 {[%clk 0:01:49]} 24. Bb3 {[%clk 0:01:07]}  Na5 {[%clk 0:01:41]} 25. Ba4 {[%clk 0:01:04]}  Re7 {[%clk 0:01:19]} 26. Bg5 {[%clk 0:01:02]}  f6 {[%clk 0:01:18]} 27. Bc1 {[%clk 0:00:43]}  Nc5 {[%clk 0:01:18]} 28. Bc2 {[%clk 0:00:43]}  Nc4 {[%clk 0:01:05]} 29. Ne6 {[%clk 0:00:34]}  Nxe6 {[%clk 0:01:01]} 30. dxe6 {[%clk 0:00:35]}  Bc8 {[%clk 0:01:00]} 31. Nf5 {[%clk 0:00:31]}  gxf5 {[%clk 0:00:53]} 32. exf5 {[%clk 0:00:32]}  Qc6 {[%clk 0:00:43]} 33. Be4 {[%clk 0:00:31]}  Qc5 {[%clk 0:00:41]} 34. b3 {[%clk 0:00:26]}  Ne5 {[%clk 0:00:36]} 35. Be3 {[%clk 0:00:26]}  Qc3 {[%clk 0:00:34]} 36. Bd4 {[%clk 0:00:22]}  Qxe1+ {[%clk 0:00:18]} 37. Qxe1 {[%clk 0:00:22]}  c5 {[%clk 0:00:18]} 38. Be3 {[%clk 0:00:21]}  Ng4 {[%clk 0:00:11]} 39. Qa1 {[%clk 0:00:19]}  Re8 {[%clk 0:00:02]} 40. Qa4 {[%clk 0:00:17]}  Re7 {[%clk 0:00:01]} 41. Qa8 {[%clk 0:00:17]} 1-0


[Site "https://www.chess.com"]

[Event "Titled Tuesday Blitz August 23 Early 2022"]
[White "Malyi, Viacheslav"]
[Black "Abdrlauf, Elham"]
[WhiteFideId "14123983"]
[BlackFideId "1533533"]
[WhiteElo "2190"]
[BlackElo "2430"]
[Result "0-1"]
[Round "01"]
[TimeControl "180+1"]
[Date "2022.08.23"]
[WhiteClock "0:01:32"]
[BlackClock "0:01:23"]

1. e4 {[%clk 0:02:58]}  c6 {[%clk 0:02:58]} 2. c4 {[%clk 0:02:49]}  d5 {[%clk 0:02:59]} 3. cxd5 {[%clk 0:02:50]}  cxd5 {[%clk 0:03:00]} 4. exd5 {[%clk 0:02:51]}  Nf6 {[%clk 0:03:00]} 5. Qa4+ {[%clk 0:02:51]}  Nbd7 {[%clk 0:03:00]} 6. Nc3 {[%clk 0:02:49]}  g6 {[%clk 0:02:59]} 7. Bc4 {[%clk 0:02:48]}  Bg7 {[%clk 0:03:00]} 8. d3 {[%clk 0:02:48]}  O-O {[%clk 0:03:00]} 9. Be3 {[%clk 0:02:43]}  Nb6 {[%clk 0:02:42]} 10. Bxb6 {[%clk 0:02:42]}  Qxb6 {[%clk 0:02:42]} 11. Qb3 {[%clk 0:02:40]}  Qd8 {[%clk 0:02:26]} 12. Nf3 {[%clk 0:02:34]}  Bg4 {[%clk 0:02:26]} 13. Nd2 {[%clk 0:02:28]}  a6 {[%clk 0:02:12]} 14. a4 {[%clk 0:02:27]}  Nd7 {[%clk 0:02:08]} 15. Nde4 {[%clk 0:02:16]}  b5 {[%clk 0:01:48]} 16. axb5 {[%clk 0:02:16]}  axb5 {[%clk 0:01:48]} 17. Rxa8 {[%clk 0:02:17]}  Qxa8 {[%clk 0:01:49]} 18. Bxb5 {[%clk 0:02:17]}  Nc5 {[%clk 0:01:27]} 19. Qc2 {[%clk 0:01:58]}  Nxe4 {[%clk 0:01:26]} 20. dxe4 {[%clk 0:01:37]}  Bxc3+ {[%clk 0:01:23]} 21. bxc3 {[%clk 0:01:32]}  Qa1+ {[%clk 0:01:23]} 0-1


[Site "https://www.chess.com"]